Cogmind - Beta 14 @@@ ROGUE MODE // 2024.11.24 @ 15:53:08 Player: Longball Result: Destroyed by Enhanced Grunt with Neutron Cannon Performance ------------- Evolutions (3) 1500 Regions Visited (10) 2000 Robots Destroyed (73) 365 Value Destroyed (2403) 2403 Prototype IDs (216) 4320 Alien Tech Used (0) 0 Bonus (3974) 3974 TOTAL SCORE: 14562 Bonus ------- Entered Garrisons 200 Used RIF Installer 500 Met Data Miner 300 Used Data Conduit 3000 Friendly Fire -26 Cogmind --------- Core Integrity 0/700 Matter 171/300 Energy 100/100 System Corruption 0% Temperature Cool (0) Movement Core (50) Location -7/Data Miner Parts ------- > --- POWER (1) -------- (None) > --- PROPULSION (4) --- (None) > --- UTILITY (4) ------ Signal Interpreter Terrain Scan Processor Relay Coupler [NC] (7) > --- WEAPON (4) ------- (None) > --- INVENTORY (5) ---- Improved Deuterium Engine Carbon-fiber Leg Improved Heat Sink Improved Terrain Scanner Improved Datajack Peak State ------------ > --- POWER ------------ Light Angular Momentum Engine > --- PROPULSION ------- Titanium Leg Titanium Leg Improved Carbon-fiber Leg Improved Titanium Leg > --- UTILITY ---------- Large Storage Unit Signal Interpreter Terrain Scan Processor Relay Coupler [NC] > --- WEAPON ----------- Heavy Ion Cannon Heavy Flak Cannon Greatsword > --- INVENTORY -------- Improved Deuterium Engine Carbon-fiber Leg Carbon-fiber Leg Improved Heat Sink Advanced Heat Sink Medium Storage Unit Compact Matter Pod Sensor Array Improved Terrain Scanner Improved Terrain Scanner Hacking Suite Relay Coupler [NC] Assault Cannon Rocket Launcher Improved Datajack [Rating: 45] Favorites ----------- Power Light Nuclear Core Engine Light Ion Engine Power Core Light Nuclear Core Propulsion Titanium Leg Treads Light Treads Leg Titanium Leg Wheel Wheel Utility Signal Interpreter Device Sensor Array Storage Large Storage Unit Processor Signal Interpreter Hackware Relay Coupler [NC] Weapon Assault Cannon Energy Gun Pulse Rifle Energy Cannon Ion Cannon Ballistic Gun High-powered Shotgun Ballistic Cannon Assault Cannon Launcher Rocket Launcher Slashing Weapon Greatsword Piercing Weapon Spear Special Melee Weapon Improved Datajack Build | -11 -10 -9 -9 -8 -8 -8 -7 -7 -7 -7 ------- Run | Yrd Mat Mat Min Mat Gar Mat Fac Low Low Dat Slots Evolved 6 | . . 2 . 2 . . 2 . . . Power . | . . . . . . . . . . . Propulsion 2 | . . . . 2 . . . . . . Utility 2 | . . 2 . . . . . . . . Weapon 2 | . . . . . . . 2 . . . Parts Attached 89 | 7 6 18 9 5 9 17 4 6 4 4 Power 10 | 1 1 3 1 . 1 2 . . . 1 Engine 8 | 1 1 3 1 . 1 . . . . 1 Core 2 | . . . . . . 2 . . . . Reactor . | . . . . . . . . . . . Propulsion 24 | 2 1 3 3 2 4 7 . 1 1 . Treads 3 | . . 3 . . . . . . . . Leg 16 | 2 1 . . . 4 7 . 1 1 . Wheel 5 | . . . 3 2 . . . . . . Hover . | . . . . . . . . . . . Flight . | . . . . . . . . . . . Utility 15 | 2 1 6 3 1 1 1 . . . . Device 6 | 1 1 2 2 . . . . . . . Storage 3 | 1 . 1 . 1 . . . . . . Processor 4 | . . 2 1 . 1 . . . . . Hackware 2 | . . 1 . . . 1 . . . . Protection . | . . . . . . . . . . . Artifact . | . . . . . . . . . . . Weapon 40 | 2 3 6 2 2 3 7 4 5 3 3 Energy Gun 12 | 2 2 3 1 1 2 . 1 . . . Energy Cannon 6 | . . . . . . 1 . 2 2 1 Ballistic Gun 3 | . . . . . . 3 . . . . Ballistic Cannon 5 | . . 2 . . . . 1 1 . 1 Launcher 8 | . 1 1 1 1 1 . . 1 1 1 Special Weapon . | . . . . . . . . . . . Impact Weapon . | . . . . . . . . . . . Slashing Weapon 1 | . . . . . . . 1 . . . Piercing Weapon 1 | . . . . . . . 1 . . . Special Melee Weapon 4 | . . . . . . 3 . 1 . . Unidentified Prototypes . | . . . . . . . . . . . Parts Lost 20 | . . 4 . 1 3 1 . 1 . 10 Power 4 | . . 1 . . 1 1 . . . 1 Propulsion 9 | . . 2 . 1 1 . . 1 . 4 Utility 1 | . . 1 . . . . . . . . Weapon 6 | . . . . . 1 . . . . 5 Highest Loss Streak 10 | . . 2 . 1 1 1 . 1 . 10 To Critical Strikes 1 | . . 1 . . . . . . . . Average Slot Usage (%) 94 | . 100 91 100 89 97 96 94 91 92 83 Engine 5 | . 14 10 11 9 8 4 . . . 1 Core 3 | . . . . . . 3 7 7 7 4 Treads 2 | . . 15 4 . . . . . . . Leg 21 | . 28 5 . . 25 33 30 29 30 25 Wheel 4 | . . . 17 26 8 . . . . . Device 4 | . 14 12 11 9 . . . . . . Storage 9 | . 14 11 11 9 9 9 7 7 7 6 Processor 16 | . . 12 22 18 26 22 15 15 15 15 Hackware 3 | . . . . . . 4 7 7 7 7 Energy Gun 7 | . 27 16 10 9 8 1 1 . . . Energy Cannon 3 | . . . . . . 7 7 6 6 5 Ballistic Cannon 6 | . . 4 11 9 9 . 6 7 7 7 Slashing Weapon 2 | . . . . . . . 4 7 7 5 Peak Build Rating 45 | 7 8 15 17 20 20 29 38 41 43 45 Average Rating 25 | 5 7 11 15 19 19 24 36 39 42 37 On Entrance 21 | . 7 8 15 17 20 19 29 38 41 43 Naked Turns . | . . . . . . . . . . . Heaviest Build 50 | 13 13 22 22 32 32 34 42 44 46 50 Greatest Support 72 | 20 20 40 40 32 40 68 66 69 72 72 Greatest Overweight (x) 6 | . . 1 1 3 2 . . . . 6 Average Overweight (x) . | . . . . . . . . . . . Largest Inventory Capacity 15 | 8 8 10 10 15 15 15 15 15 15 15 Average Capacity 12 | 7 8 9 10 13 15 15 15 15 15 14 Most Carried 15 | 6 8 10 10 11 15 15 15 15 15 15 Average Carried 12 | 4 7 8 9 10 12 14 14 14 15 14 Final Capacity 15 | 8 8 10 10 15 15 15 15 15 15 5 Final Carried 15 | 6 8 10 10 11 15 15 15 15 15 5 Class Distribution -------------------- 43% | Mutant 39% | Scavenger-Mutant 10% | Scavenger-Skirmisher 4% | Skirmisher Dominant Class ---------------- Mutant | -10/Materials Mutant | -9/Materials Scavenger-Mutant | -9/Mines Scavenger-Mutant | -8/Materials Scavenger-Mutant | -8/Garrison Scavenger-Mutant | -8/Materials Scavenger-Mutant | -7/Factory Mutant | -7/Lower Caves Mutant | -7/Lower Caves Mutant | -7/Data Miner Resources | -11 -10 -9 -9 -8 -8 -8 -7 -7 -7 -7 ----------- Run | Yrd Mat Mat Min Mat Gar Mat Fac Low Low Dat Matter Collected 1836 | 270 23 255 323 27 130 540 93 92 73 10 Remotely . | . . . . . . . . . . . Salvage Created 2248 | 154 148 409 143 136 175 399 179 425 40 40 Parts 145 | 11 26 34 13 9 9 20 8 10 3 2 Haulers Intercepted . | . . . . . . . . . . . Recyclers Shooed . | . . . . . . . . . . . Parts Field Recycled . | . . . . . . . . . . . Retrieved Matter . | . . . . . . . . . . . Parts Self-Destructed 14 | . . . . . . . . 7 7 . Prevented 1 | . . . . . . . . 1 . . Kills | -11 -10 -9 -9 -8 -8 -8 -7 -7 -7 -7 ------- Run | Yrd Mat Mat Min Mat Gar Mat Fac Low Low Dat Combat Hostiles Destroyed 60 | . 9 14 5 4 6 9 1 7 4 1 Melee 2 | . . . . . . . . 2 . . Guns 22 | . 3 9 2 2 . 6 . . . . Cannons 14 | . . 2 3 1 2 3 1 1 . 1 AOE 22 | . 6 3 . 1 4 . . 4 4 . Classes Destroyed 12 | 2 3 3 3 . . 1 . . . . Worker 1 | . . . 1 . . . . . . . Builder 2 | . . . 1 1 . . . . . . Tunneler 4 | 4 . . . . . . . . . . Recycler 4 | 1 . . 1 . . . 2 . . . Operator 2 | . 1 . . 1 . . . . . . Watcher 2 | . . 2 . . . . . . . . Swarmer 22 | . 6 7 . . . . . 5 4 . Grunt 20 | . 3 4 . 4 5 3 . 1 . . Duelist 1 | . . 1 . . . . . . . . Sentry 10 | . . 2 2 . 1 3 1 1 . . Hunter 3 | . . . . . . 3 . . . . Enhanced Grunt 1 | . . . . . . . . . . 1 Assembled 3 | . . . 3 . . . . . . . Best Kill Streak 9 | 3 7 9 4 5 5 3 1 4 4 1 Combat Bots Only 8 | . 6 8 2 4 5 3 1 4 4 1 Max Kills in Single Turn 3 | 1 3 2 1 1 2 1 1 3 2 1 Gunslinging . | . . . . . . . . . . . Exploded 3 | . 3 2 . 1 2 . . 3 2 . Melee 1 | . . . . . . . . 1 . . Uniques/NPCs Destroyed 1 | . . . . . . . . . . 1 Data Miner (-7/Data Miner) Combat | -11 -10 -9 -9 -8 -8 -8 -7 -7 -7 -7 -------- Run | Yrd Mat Mat Min Mat Gar Mat Fac Low Low Dat Hostile Shots Fired 368 | . 43 61 14 23 23 58 27 61 10 48 Missed 122 | . 12 15 3 11 9 22 13 20 3 14 Damage Taken 4264 | 30 250 601 165 182 234 535 102 464 92 1609 Core 1107 | . 32 152 44 15 68 52 5 62 . 677 Absorbed by Shields . | . . . . . . . . . . . Core Remaining (%) 78 | 100 87 . 51 . . 75 . . . . Volleys Fired 168 | 8 16 39 29 16 12 27 5 4 3 9 Largest 4 | 2 2 2 2 2 2 2 3 2 1 4 Hottest 195 | 80 90 107 107 107 107 88 173 104 33 195 Shots Fired 312 | 16 28 75 48 29 19 54 12 6 3 22 Gun 172 | 16 24 62 19 13 7 29 2 . . . Cannon 112 | . . 11 25 14 7 25 10 4 . 16 Launcher 28 | . 4 2 4 2 5 . . 2 3 6 Special . | . . . . . . . . . . . Kinetic 104 | . . 11 25 14 7 27 5 2 . 13 Thermal 118 | . 3 37 19 13 7 27 7 2 . 3 Explosive 28 | . 4 2 4 2 5 . . 2 3 6 Electromagnetic 62 | 16 21 25 . . . . . . . . Robot Hit Streak 12 | 4 6 12 7 11 7 6 3 7 2 3 Robot Miss Streak 5 | 1 5 5 2 3 2 4 5 2 3 3 Penetration Max . | . . . . . . . . . . . Secondary Targets . | . . . . . . . . . . . Shots Hit Robots 210 | 9 14 47 24 21 12 43 5 16 2 17 Core Hits 139 | 6 14 21 11 10 12 21 3 8 5 28 Critical Kills . | . . . . . . . . . . . Critical Parts Destroyed . | . . . . . . . . . . . Critical Strikes 4 | . . 1 . 1 2 . . . . . Burn 3 | . . 1 . 1 1 . . . . . Blast 1 | . . . . . 1 . . . . . Melee Attacks 27 | . . . . . . 6 3 17 . 1 Impact . | . . . . . . . . . . . Slashing 17 | . . . . . . . 2 14 . 1 Piercing 1 | . . . . . . . 1 . . . Sneak Attacks 10 | . . . . . . 4 2 3 . 1 Combat Hostiles . | . . . . . . . . . . . Follow-up Attacks . | . . . . . . . . . . . Damage Inflicted 6859 | 210 708 846 551 521 613 748 217 994 358 1093 Guns 1800 | 117 208 580 226 191 53 405 20 . . . Cannons 1550 | . . 166 300 220 127 343 51 44 . 299 Explosions 2579 | 93 500 100 17 110 433 . . 289 358 679 Melee 922 | . . . . . . . 146 661 . 115 Ramming 8 | . . . 8 . . . . . . . Kinetic 1494 | . . 166 300 220 127 371 27 21 . 262 Thermal 1427 | 93 62 321 226 191 53 377 44 23 . 37 Explosive 2436 | . 450 100 17 110 433 . . 289 358 679 Electromagnetic 572 | 117 196 259 . . . . . . . . Impact . | . . . . . . . . . . . Slashing 863 | . . . . . . . 87 661 . 115 Piercing 59 | . . . . . . . 59 . . . Highest Corruption . | . . . . . . . . . . . Average Corruption . | . . . . . . . . . . . Corruption Purged . | . . . . . . . . . . . Corruption Blocked . | . . . . . . . . . . . Overload Shots . | . . . . . . . . . . . Overflow Damage 375 | . 33 . . . . . 29 293 20 . Projectiles 8 | . . . . . . . . 8 . . Explosions 53 | . 33 . . . . . . . 20 . Melee 314 | . . . . . . . 29 285 . . Knockbacks 5 | . . 3 . 1 . . . . . 1 Impact . | . . . . . . . . . . . Kinetic 5 | . . 3 . 1 . . . . . 1 Secondary . | . . . . . . . . . . . Self-Inflicted Damage 44 | 30 . . 4 . 10 . . . . . Shots 2 | 1 . . . . 1 . . . . . Rammed 1 | . . . 1 . . . . . . . Targets Rammed 1 | . . . 1 . . . . . . . Kicked . | . . . . . . . . . . . Crushed . | . . . . . . . . . . . Highest Temperature 333 | 36 88 288 274 333 83 45 165 48 . 200 Average Temperature 73 | 17 35 84 103 138 29 14 61 17 . 72 Received Heat Transfer 675 | . 30 63 54 126 90 90 24 198 . . Effects 1 | . . . . 1 . . . . . . Short Circuit 1 | . . . . 1 . . . . . . Siege Activations . | . . . . . . . . . . . Robots Corrupted . | . . . . . . . . . . . Combat Hostiles . | . . . . . . . . . . . Parts Fried 1 | . 1 . . . . . . . . . Impact Corruptions . | . . . . . . . . . . . Robots Melted . | . . . . . . . . . . . Combat Hostiles . | . . . . . . . . . . . Parts Melted 3 | . . 2 1 . . . . . . . Heat Transferred 3136 | 150 137 888 481 481 185 629 74 37 . 74 Parts Sabotaged . | . . . . . . . . . . . Parts Stolen . | . . . . . . . . . . . Parts Stripped . | . . . . . . . . . . . Power Chain Reactions 4 | 3 1 . . . . . . . . . Alert | -11 -10 -9 -9 -8 -8 -8 -7 -7 -7 -7 ------- Run | Yrd Mat Mat Min Mat Gar Mat Fac Low Low Dat Peak Influence 511 | 25 511 268 137 164 314 290 186 . . . Initial 148 | . 16 16 63 . 106 148 130 . . . Average 137 | 9 188 122 46 58 237 228 134 . . . Maximum Alert Level 2 | . 2 1 . . 1 1 . . . . Low Security (%) 70 | 100 43 76 100 100 17 41 100 . . . Level 1 27 | . 46 23 . . 82 58 . . . . Level 2 1 | . 10 . . . . . . . . . Level 3 . | . . . . . . . . . . . Level 4 . | . . . . . . . . . . . Level 5 . | . . . . . . . . . . . High Security . | . . . . . . . . . . . Max Security . | . . . . . . . . . . . Squads Dispatched 8 | . . 3 . 2 . 3 . . . . Investigation 5 | . . 2 . 1 . 2 . . . . Extermination . | . . . . . . . . . . . Reinforcement 2 | . . 1 . . . 1 . . . . Assault . | . . . . . . . . . . . Garrison 1 | . . . . 1 . . . . . . Intercept . | . . . . . . . . . . . Searches Triggered . | . . . . . . . . . . . Construction Impeded . | . . . . . . . . . . . Haulers Reinforced . | . . . . . . . . . . . Active Scanning Responses . | . . . . . . . . . . . Cargo Convoy Interrupts . | . . . . . . . . . . . Stealth | -11 -10 -9 -9 -8 -8 -8 -7 -7 -7 -7 --------- Run | Yrd Mat Mat Min Mat Gar Mat Fac Low Low Dat Distress Signals 6 | . 2 2 . 1 . 1 . . . . Communications Jammed . | . . . . . . . . . . . Distress Signals . | . . . . . . . . . . . Times Spotted 88 | . 14 20 6 7 8 16 2 7 4 4 Peak Tracking Total 8 | . 8 8 2 4 4 4 1 4 4 3 Tactical Retreats 3 | . . 3 . . . . . . . . Traps | -11 -10 -9 -9 -8 -8 -8 -7 -7 -7 -7 ------- Run | Yrd Mat Mat Min Mat Gar Mat Fac Low Low Dat Traps Triggered 3 | . . 1 . . 1 1 . . . . Indirectly . | . . . . . . . . . . . Trap Hack Attempts . | . . . . . . . . . . . Triggered . | . . . . . . . . . . . Disarmed . | . . . . . . . . . . . Reprogrammed . | . . . . . . . . . . . Reused . | . . . . . . . . . . . Traps Extracted . | . . . . . . . . . . . Installed . | . . . . . . . . . . . Triggered 3 | . . . . . . . . 3 . . Machines | -11 -10 -9 -9 -8 -8 -8 -7 -7 -7 -7 ---------- Run | Yrd Mat Mat Min Mat Gar Mat Fac Low Low Dat Machines Disabled 9 | . 3 3 1 . 1 1 . . . . Max in Single Turn 1 | . 1 1 1 . 1 1 . . . . Garrison Relay 1 | . . . . . 1 . . . . . Machines Repaired . | . . . . . . . . . . . Machines Dismantled . | . . . . . . . . . . . Machines Sabotaged . | . . . . . . . . . . . Overloaded Fab Kills . | . . . . . . . . . . . Hacking | -11 -10 -9 -9 -8 -8 -8 -7 -7 -7 -7 --------- Run | Yrd Mat Mat Min Mat Gar Mat Fac Low Low Dat Machines Accessed 24 | . 2 4 . 3 . 5 3 1 2 4 Terminals 13 | . 2 3 . 1 . 4 1 1 1 . Fabricators . | . . . . . . . . . . . Repair Stations 2 | . . . . . . 1 1 . . . Recycling Units 1 | . . . . . . . 1 . . . Scanalyzers 2 | . . 1 . 1 . . . . . . Garrison Access 1 | . . . . 1 . . . . . . Total Hacks 71 | . 6 13 . 6 . 12 5 1 2 26 Successful 49 | . 5 5 . 5 . 4 1 1 2 26 Failed 22 | . 1 8 . 1 . 8 4 . . . Catastrophic 2 | . . 1 . . . 1 . . . . Database Lockouts . | . . . . . . . . . . . Manual 29 | . 1 8 . 4 . 12 4 . . . Terminals 34 | . 6 10 . 4 . 10 2 1 1 . Fabricators . | . . . . . . . . . . . Repair Stations 3 | . . . . . . 2 1 . . . Recycling Units 2 | . . . . . . . 2 . . . Scanalyzers 4 | . . 3 . 1 . . . . . . Garrison Access 1 | . . . . 1 . . . . . . Terminal Hacks 40 | . 5 4 . 1 . 1 . 1 2 26 Record 14 | . . . . . . 1 . 1 1 11 Part Schematic 8 | . . . . . . . . . . 8 Robot Schematic 4 | . . . . . . . . . . 4 Prototype ID Bank 3 | . . . . . . . . . . 3 Open Door 1 | . . . . . . . . . 1 . Branch Access Points 2 | . 1 1 . . . . . . . . Alert Level 1 | . 1 . . . . . . . . . Unreport Threat 3 | . 2 1 . . . . . . . . Zone Layout 4 | . 1 2 . 1 . . . . . . Fabricator Hacks . | . . . . . . . . . . . Repair Station Hacks . | . . . . . . . . . . . Recycling Unit Hacks . | . . . . . . . . . . . Scanalyzer . | . . . . . . . . . . . Garrison Access Hacks 1 | . . . . 1 . . . . . . Unlock Access 1 | . . . . 1 . . . . . . Unauthorized Hacks 7 | . . 1 . 3 . 3 . . . . Terminals 5 | . . 1 . 2 . 2 . . . . Botnet 3 | . . 1 . 1 . 1 . . . . Operators 2 | . . . . 1 . 1 . . . . Fabricators . | . . . . . . . . . . . Repair Stations 1 | . . . . . . 1 . . . . Mechanics 1 | . . . . . . 1 . . . . Recycling Units . | . . . . . . . . . . . Scanalyzers 1 | . . . . 1 . . . . . . Extract 1 | . . . . 1 . . . . . . Garrison Access . | . . . . . . . . . . . Data Cores Recovered 1 | . . . . 1 . . . . . . Used 1 | . . . . 1 . . . . . . Hacking Detections 15 | . 2 4 . 2 . 4 3 . . . Full Trace Events 2 | . . 1 . . . 1 . . . . Feedback Events . | . . . . . . . . . . . Feedback Blocked . | . . . . . . . . . . . Robot Schematics Acquired 4 | . . . . . . . . . . 4 Robots Built . | . . . . . . . . . . . Authchips . | . . . . . . . . . . . Time . | . . . . . . . . . . . Total Robot Build Rating . | . . . . . . . . . . . Part Schematics Acquired 19 | . . . . 11 . . . . . 8 Parts Built . | . . . . . . . . . . . Authchips . | . . . . . . . . . . . Time . | . . . . . . . . . . . Total Part Build Rating . | . . . . . . . . . . . Parts Repaired . | . . . . . . . . . . . Time . | . . . . . . . . . . . Parts Recycled . | . . . . . . . . . . . Recycled Matter . | . . . . . . . . . . . Retrieved Matter . | . . . . . . . . . . . Retrieved Components . | . . . . . . . . . . . Parts Scanalyzed . | . . . . . . . . . . . Part Schematics Acquired . | . . . . . . . . . . . Parts Damaged . | . . . . . . . . . . . Bothacking | -11 -10 -9 -9 -8 -8 -8 -7 -7 -7 -7 ------------ Run | Yrd Mat Mat Min Mat Gar Mat Fac Low Low Dat Used RIF Installer 1 | . . . . . 1 . . . . . Robots Hacked 4 | . . . . . . 2 . 2 . . Non-combat 4 | . . . . . . 2 . 2 . . Combat . | . . . . . . . . . . . Robot Hacks Applied 5 | . . . . . . 2 . 3 . . parse_system 2 | . . . . . . 1 . 1 . . link_fov 1 | . . . . . . . . 1 . . streamctrl_low 1 | . . . . . . . . 1 . . formatsys_low 1 | . . . . . . 1 . . . . Relay Couplers Released 3 | . . . . . 3 . . . . . Machine Destruction 3 | . . . . . 3 . . . . . Attached 1 | . . . . . . 1 . . . . Fabnet Peak Effective % . | . . . . . . . . . . . Robots Rewired . | . . . . . . . . . . . Allies Hacked . | . . . . . . . . . . . Hacks Repelled . | . . . . . . . . . . . Allies | -11 -10 -9 -9 -8 -8 -8 -7 -7 -7 -7 -------- Run | Yrd Mat Mat Min Mat Gar Mat Fac Low Low Dat Total Allies 2 | . . . . . . 1 . 1 . . Largest Group 1 | . . . . . . 1 . 1 . . Highest-Rated Group 11 | . . . . . . 10 . 11 . . Highest-Rated Ally 11 | . . . . . . 10 . 11 . . Total Orders . | . . . . . . . . . . . Ally Attacks . | . . . . . . . . . . . Total Damage . | . . . . . . . . . . . Kills . | . . . . . . . . . . . Allies Corrupted . | . . . . . . . . . . . Allies Melted . | . . . . . . . . . . . Intel | -11 -10 -9 -9 -8 -8 -8 -7 -7 -7 -7 ------- Run | Yrd Mat Mat Min Mat Gar Mat Fac Low Low Dat Robot Analysis Total 145 | . . . . . . . . . . 145 Derelict Logs Recovered 5 | . . . 2 . . . . 1 2 . Drone Launches . | . . . . . . . . . . . Drone Recoveries . | . . . . . . . . . . . Exploration | -11 -10 -9 -9 -8 -8 -8 -7 -7 -7 -7 ------------- Run | Yrd Mat Mat Min Mat Gar Mat Fac Low Low Dat Turns Passed 6024 | 132 464 717 970 184 370 791 522 974 742 158 Spaces Moved 4052 | 71 297 343 754 127 264 487 374 658 576 101 Core 18 | 2 . . . . . . . . . 16 Treads 307 | . . 229 78 . . . . . . . Legs 2870 | 69 297 114 . . 210 487 374 658 576 85 Wheels 857 | . . . 676 127 54 . . . . . Hover . | . . . . . . . . . . . Flight . | . . . . . . . . . . . Fastest Speed 50 | 50 120 120 90 83 95 120 127 127 127 50 Average Speed 120 | 118 120 146 97 86 117 124 127 127 127 117 Slowest Speed 350 | 120 120 190 160 125 260 130 127 130 127 350 Overloaded Moves . | . . . . . . . . . . . Propulsion Burnouts . | . . . . . . . . . . . Robots Hopped . | . . . . . . . . . . . Cave-ins Triggered . | . . . . . . . . . . . Exploration Rate (%) 46 | 4 49 40 98 11 46 34 10 78 62 77 Regions Visited 10 Branch Regions 4 Pre-discovered Areas 29 | . . . 1 . . . . . 1 27 Known Exits Taken 7 | . . 1 1 1 . 1 1 1 1 . Unknown Exits Taken 2 | 1 1 . . . . . . . . . Scrap Searched 5 | . . . 1 . . . . 1 3 . Spaces Dug 21 | . . . 14 . . . 7 . . . Terrain Destroyed 192 | 12 26 10 52 25 16 2 7 7 14 21 Melee 1 | . . . . . . . 1 . . . Projectile 22 | . . 1 9 4 . 2 6 . . . AOE 169 | 12 26 9 43 21 16 . . 7 14 21 Terrain Rammed . | . . . . . . . . . . . Walls Destroyed . | . . . . . . . . . . . Machines Disabled . | . . . . . . . . . . . Actions | -11 -10 -9 -9 -8 -8 -8 -7 -7 -7 -7 --------- Run | Yrd Mat Mat Min Mat Gar Mat Fac Low Low Dat Total 4863 | 99 378 482 940 171 304 620 406 760 584 119 Wait 436 | 8 49 64 138 18 3 69 11 76 . . Move 4041 | 70 296 342 753 126 262 486 373 657 575 101 Hop . | . . . . . . . . . . . Pick Up 38 | 6 4 7 2 4 5 4 5 . . 1 Fast Attach 33 | 7 2 9 3 1 4 5 1 . . 1 Attach 12 | . . 4 . 1 2 . 2 1 . 2 Detach 8 | . 1 3 1 . 3 . . . . . Swap 44 | . 4 5 6 3 3 12 1 5 4 1 Drop 47 | . 6 9 7 2 2 11 5 . 2 3 Fire 168 | 8 16 39 29 16 12 27 5 4 3 9 Melee 27 | . . . . . . 6 3 17 . 1 Ram 1 | . . . 1 . . . . . . . Kick . | . . . . . . . . . . . Crush . | . . . . . . . . . . . Escape Stasis 8 | . . . . . 8 . . . . . Rewire . | . . . . . . . . . . . Trap . | . . . . . . . . . . . Miscellaneous . | . . . . . . . . . . . Route ------- -11/Scrapyard -10/Materials (discovered 4 exits: *Mat x2 / Min x2) -9/Materials (discovered 2 exits: *Mat / *Min) -9/Mines (discovered 2 exits: *Mat x2) -8/Materials -8/Garrison -8/Materials -7/Factory -7/Lower Caves -7/Lower Caves -7/Data Miner (discovered 1 exit: *Pro) History --------- Turn | Location | Event 9 | -11/Scrapyard | Discovered new exit (range 15) 133 | -11/Scrapyard | Entered Materials 329 | -10/Materials | Discovered new exit (range 15) 335 | -10/Materials | Build established: Mutant 388 | -10/Materials | Identified exit to Mines 490 | -10/Materials | Discovered new exit (range 16) 597 | -10/Materials | Entered another Materials area 597 | -9/Materials | Evolved 2 slots: Utility x2 777 | -9/Materials | Identified exit to Mines 858 | -9/Materials | Destroyed 8 combat bots 998 | -9/Materials | Discovered new exit (range 15) 1043 | -9/Materials | Identified exit to Materials 1314 | -9/Materials | Entered Mines 1315 | -9/Mines | Learned location of Storage (-7) 1315 | -9/Mines | Assembled infested the area 1318 | -9/Mines | Learned Materials terminal intel 1320 | -9/Mines | Assisted by a Guerilla fighting off Assembled 1379 | -9/Mines | Discovered exit to Materials (range 4) 1543 | -9/Mines | Joined a pair of Derelicts in attacking an 0b10 outpost 1818 | -9/Mines | Build established: Scavenger-Skirmisher 2161 | -9/Mines | Build established: Scavenger-Mutant 2284 | -9/Mines | Entered Materials 2284 | -8/Materials | Evolved 2 slots: Propulsion x2 2285 | -8/Materials | Loaded intel: 11 terminal locations 2394 | -8/Materials | Garrison activated, responded to threat 2467 | -8/Materials | Identified exit to Garrison 2468 | -8/Materials | Entered Garrison 2526 | -8/Garrison | Triggered checkpoint 2722 | -8/Garrison | Discovered new exit (range 15) 2734 | -8/Garrison | Garrison Relay disabled 2760 | -8/Garrison | Identified exit to Materials 2789 | -8/Garrison | Installed Relay Interface Framework 2816 | -8/Garrison | Triggered checkpoint 2838 | -8/Garrison | Entered Materials 3553 | -8/Materials | Discovered new exit (range 15) 3620 | -8/Materials | Identified exit to Factory 3629 | -8/Materials | Entered Factory 3629 | -7/Factory | Evolved 2 slots: Weapon x2 4004 | -7/Factory | Discovered new exit (range 5) 4128 | -7/Factory | Identified exit to Lower Caves 4151 | -7/Factory | Entered Lower Caves 4237 | -7/Lower Caves | Learned Factory emergency access door positions 4572 | -7/Lower Caves | Attracted the attention of an 0b10 checkpoint 4648 | -7/Lower Caves | Discovered new exit (range 5) 4652 | -7/Lower Caves | Identified exit to Lower Caves 4920 | -7/Lower Caves | Build established: Mutant 5125 | -7/Lower Caves | Entered another Lower Caves area 5279 | -7/Lower Caves | Learned 4 Factory zone layouts 5293 | -7/Lower Caves | Learned location of Zion (-6) 5340 | -7/Lower Caves | Discovered new exit (range 10) 5349 | -7/Lower Caves | Identified exit to Data Miner 5619 | -7/Lower Caves | Encountered a Warlord checkpoint 5867 | -7/Lower Caves | Entered Data Miner 5867 | -7/Data Miner | Discovered new exit (range 7) 5875 | -7/Data Miner | Identified exit to Proximity Caves 5892 | -7/Data Miner | Met Data Miner 5914 | -7/Data Miner | Learned location of Section 7 (-3) 5914 | -7/Data Miner | Acquired the access code to Warlord's prototype stash 5953 | -7/Data Miner | Received God Mode back door access code from Data Miner 5965 | -7/Data Miner | Destroyed Data Miner 5973 | -7/Data Miner | Found Prototype Hackware 5974 | -7/Data Miner | Interfaced with the Data Conduit 6004 | -7/Data Miner | Core integrity fell below 50% 6021 | -7/Data Miner | Core integrity fell below 20% 6025 | -7/Data Miner | Destroyed by Enhanced Grunt with Neutron Cannon Last Messages --------------- Downloaded 756 prototype IDs. Downloaded central machine database. Downloaded 26 destinations. Downloaded encryption format records. Connection remotely terminated. [Achievement: Unlimited Data] 05988_ Greatsword destroyed. 05990_ Imp. Carbon-fiber Leg destroyed. 05996_ Titanium Leg destroyed. 05998_ Imp. Titanium Leg destroyed. 06000_ Rocket Launcher destroyed. 06003_ Lgt. Angular Momentum Engine destroyed. 06004_ Enhanced Grunt destroyed. 06007_ Enhanced Grunt knocked back. 06007_ Hvy. Ion Cannon destroyed. 06011_ Hvy. Flak Cannon destroyed. 06011_ Assault Cannon destroyed. 06011_ Titanium Leg destroyed. 06017_ Dropped Lrg. Storage Unit. 06022_ The unstable cave ceiling collapses. Map ----- +----------------------------------------------------+ | | | | | | | | | | | | | | | | | | | | | | | | | | | | | | | ???????????????????????????????????????????????? | | ???????????????????????????????????????????????? | | ???????????????????????????????????????????????? | | ???????????????????#####???????????????????????? | | ???????????????##### ####????????####????????? | | ????############ # ##?#???### #????????? | | ???"""""""""""""" # # #?### #????????? | | ??"""""""" "" # # ## > ##????????? | | ??"""""""" g ######???? | | ??"""""" % #???? | | ?""""""" g @ #???? | | ?""""""% % g #???? | | ?"""""""! !!! ##???? | | ??""""""* =!! """"""""""""""""#####????? | | ??""""""" !!! """"###############????????? | | ??"""""" """""###??????????????????????? | | ???""""""" "#####????????????????????????? | | ????######""; "#????????????????????????????? | | ?????????#"#"# "#????????????????????????????? | | ?????????#"### "#????????????????????????????? | | ?????????#"## "#????????????????????????????? | | ?????????#"## "#????????????????????????????? | | ???????????# "#????????????????????????????? | | ???????????### "#????????????????????????????? | | ?????????????# "##???????????????????????????? | | ????????????## ""#???????????????????????????? | | ?????????#?## ""#???????????????????????????? | | ????????##"#"X ""#???????????????????????????? | | ????????""""" "####????????????????????????? | | ????????""""" X"""""????????????????????????? | | ????????##"#"X "##"#????????????????????????? | | ?????????#?## X""""#????????????????????????? | | ????????????## "##"#????????????????????????? | | ?????????????#######???????????????????????????? | | ???????????????????????????????????????????????? | +----------------------------------------------------+ Best States ------------- Heat Dissipation 38 Energy Generation 18 Energy Capacity 160 Matter Stores 300 Matter Capacity 300 Sight Range 18 Robot Scan Range 14 Terrain Scan Range 16 Terrain Scan Density 85 Evasion (%) 55 Targeting Accuracy 6 Recoil Reduction 2 Offensive Hacking 10 Relay Coupler Types 1 Relay Coupler Value 15 Item Schematics ----------------- Flak Cannon | -8/Materials | Extracted Grenade Launcher | -8/Materials | Extracted EM Pulse Cannon | -8/Materials | Extracted Cooling System | -8/Materials | Extracted Hrd. Medium Armor Plating | -8/Materials | Extracted Cesium-ion Thruster | -8/Materials | Extracted Imp. Targeting Computer | -8/Materials | Extracted Assault Rifle | -8/Materials | Extracted Hcp. Storage Unit | -8/Materials | Extracted Particle Charger | -8/Materials | Extracted Hacking Suite | -8/Materials | Extracted Combat Drone Bay | -7/Data Miner | Free Lgt. Regenerative Plating | -7/Data Miner | Free Biomechanical Wings | -7/Data Miner | Free Exp. Power Shielding | -7/Data Miner | Free Prc. Rocket Launcher | -7/Data Miner | Free Med. Armored Exoskeleton | -7/Data Miner | Free Point Defense System | -7/Data Miner | Free Enh. Gauss Cannon | -7/Data Miner | Free Robot Schematics ------------------ G-47 Trooper | -7/Data Miner | Free L-41 Fighter | -7/Data Miner | Free Y-54 Guardian | -7/Data Miner | Free M-14 Sweeper | -7/Data Miner | Free Fabricated ------------ Nothing Alien Tech Used ----------------- None Achievements -------------- Unlimited Data Challenges ------------ None Game ------ Seed FlyingPointRay Manual? 0 Play Time 01:14:09 Cumulative 231.4 hours Start 2024.11.24 @ 14:29:22 End 2024.11.24 @ 15:53:08 Sessions 1 Manual Loads 0 Difficulty Rogue Special Mode None Game No. 184 Rogue 184 Adventurer 0 Explorer 0 Win Type - Total 1 Types 1/0/0/0/0/0/0/0/0 Lore% 50 Gallery% 62 Achievement% 43 Wizard Run 0 Options --------- Layout 0 ASCII 0 Keyboard 1 Movement Numpad Keybinds 0 Fullscreen 1 Font 12/Terminus Map View 83x54 Zoom Use 0% Tactical HUD 1 Map Filters NONE Filters NONE Steam 1 RUN: f1598105-3f92-4210-a50c-ffee81085021